[Event "Early-Titled-Tuesday-Blitz-September-12-2023"]
[Site "Chess.com"]
[Date "2023.09.12"]
[Round "1"]
[White "viktorskliarov"]
[Black "FuenfgegenWilly"]
[Result "1-0"]
[WhiteElo "2654"]
[BlackElo "2352"]
[TimeControl "180+1"]
[EndTime "8:08:48 PDT"]
[Termination "viktorskliarov won by resignation"]

1. e4 {[%clk 0:02:58.9]} 1... e5 {[%clk 0:02:36.5]} 2. Nc3 {[%clk 0:02:58.3]}
2... Nf6 {[%clk 0:02:35.9]} 3. Bc4 {[%clk 0:02:58.7]} 3... Nxe4 {[%clk
0:02:35.2]} 4. Qh5 {[%clk 0:02:58.4]} 4... Nd6 {[%clk 0:02:34]} 5. Bb3 {[%clk
0:02:58.6]} 5... Be7 {[%clk 0:02:33.8]} 6. Qxe5 {[%clk 0:02:58.3]} 6... O-O
{[%clk 0:02:33.4]} 7. d4 {[%clk 0:02:58.3]} 7... Nc6 {[%clk 0:02:34]} 8. Qf4
{[%clk 0:02:58.5]} 8... Bf6 {[%clk 0:02:33.9]} 9. Nge2 {[%clk 0:02:56.6]} 9...
Ne7 {[%clk 0:02:27.5]} 10. g3 {[%clk 0:02:48.5]} 10... Ng6 {[%clk 0:02:23.9]}
11. Qf3 {[%clk 0:02:48.5]} 11... Rb8 {[%clk 0:02:03.1]} 12. h4 {[%clk
0:02:42.1]} 12... Re8 {[%clk 0:01:58.9]} 13. Be3 {[%clk 0:02:38.5]} 13... b5
{[%clk 0:01:55.9]} 14. Nd5 {[%clk 0:02:34.1]} 14... Bb7 {[%clk 0:01:48.3]} 15.
h5 {[%clk 0:02:24.4]} 15... Nf8 {[%clk 0:01:44.2]} 16. Nxf6+ {[%clk 0:02:23.4]}
16... Qxf6 {[%clk 0:01:43.3]} 17. Qxf6 {[%clk 0:02:21.4]} 17... gxf6 {[%clk
0:01:44.2]} 18. Rh4 {[%clk 0:02:10.5]} 18... Ne6 {[%clk 0:01:33.2]} 19. Kd2
{[%clk 0:01:59.7]} 19... Ne4+ {[%clk 0:01:22]} 20. Ke1 {[%clk 0:01:52.9]} 20...
f5 {[%clk 0:01:14.7]} 21. f3 {[%clk 0:01:46.8]} 21... Nf6 {[%clk 0:01:10.7]} 22.
Kf2 {[%clk 0:01:44.8]} 22... Nd5 {[%clk 0:00:58.8]} 23. Bh6 {[%clk 0:01:41.3]}
23... f6 {[%clk 0:00:45.2]} 24. c3 {[%clk 0:01:35.3]} 24... Kf7 {[%clk
0:00:40.3]} 25. Bc2 {[%clk 0:01:35.1]} 25... Ne7 {[%clk 0:00:40.8]} 26. Nf4
{[%clk 0:01:29.1]} 26... Rg8 {[%clk 0:00:37]} 27. Nxe6 {[%clk 0:01:23.2]} 27...
dxe6 {[%clk 0:00:36.4]} 28. Bf4 {[%clk 0:01:12.5]} 28... Nd5 {[%clk 0:00:35.3]}
29. Re1 {[%clk 0:01:01.1]} 29... Rbc8 {[%clk 0:00:35.2]} 30. Bd2 {[%clk
0:00:56.2]} 30... c5 {[%clk 0:00:35.1]} 31. dxc5 {[%clk 0:00:51.8]} 31... Rxc5
{[%clk 0:00:36]} 32. Bd3 {[%clk 0:00:50.3]} 32... a6 {[%clk 0:00:34.2]} 33. a4
{[%clk 0:00:49.7]} 33... Ne7 {[%clk 0:00:30.6]} 34. axb5 {[%clk 0:00:48.7]}
34... axb5 {[%clk 0:00:30.9]} 35. Rb4 {[%clk 0:00:45.8]} 35... Rd8 {[%clk
0:00:29.4]} 36. Rd4 {[%clk 0:00:35.3]} 36... Rxd4 {[%clk 0:00:29.2]} 37. cxd4
{[%clk 0:00:35.7]} 37... Rd5 {[%clk 0:00:30.1]} 38. Be3 {[%clk 0:00:34.8]} 38...
Nc6 {[%clk 0:00:29.5]} 39. Rc1 {[%clk 0:00:33.9]} 39... Ke7 {[%clk 0:00:20.6]}
40. Rc5 {[%clk 0:00:32]} 40... Rxc5 {[%clk 0:00:17.6]} 41. dxc5 {[%clk
0:00:32.9]} 41... b4 {[%clk 0:00:17.2]} 42. g4 {[%clk 0:00:30.5]} 42... fxg4
{[%clk 0:00:16.8]} 43. fxg4 {[%clk 0:00:29.5]} 43... Ne5 {[%clk 0:00:17.5]} 44.
Be2 {[%clk 0:00:30]} 44... Bd5 {[%clk 0:00:16.6]} 45. Bd4 {[%clk 0:00:27.8]}
45... Nf7 {[%clk 0:00:15.9]} 46. Bf3 {[%clk 0:00:23.3]} 46... Bxf3 {[%clk
0:00:16.1]} 47. Kxf3 {[%clk 0:00:24.2]} 47... e5 {[%clk 0:00:16.5]} 48. Be3
{[%clk 0:00:23.1]} 48... b3 {[%clk 0:00:16.3]} 49. Ke4 {[%clk 0:00:22.5]} 49...
Ke6 {[%clk 0:00:16.9]} 50. c6 {[%clk 0:00:18]} 50... Nd6+ {[%clk 0:00:14.7]} 51.
Kd3 {[%clk 0:00:18.4]} 51... Kd5 {[%clk 0:00:14.3]} 52. c7 {[%clk 0:00:17.7]}
52... e4+ {[%clk 0:00:14.3]} 53. Kc3 {[%clk 0:00:17.7]} 53... Nb5+ {[%clk
0:00:15]} 54. Kxb3 {[%clk 0:00:17.3]} 54... Nxc7 {[%clk 0:00:15.9]} 55. Kc3
{[%clk 0:00:16.1]} 55... Nb5+ {[%clk 0:00:16.1]} 56. Kd2 {[%clk 0:00:16.5]}
56... Nd6 {[%clk 0:00:15.1]} 57. Ke2 {[%clk 0:00:16.2]} 57... Nc4 {[%clk
0:00:12.2]} 58. Bc1 {[%clk 0:00:16.4]} 58... Ke5 {[%clk 0:00:12.3]} 59. b3
{[%clk 0:00:14.5]} 59... Nd6 {[%clk 0:00:12.2]} 60. Bb2+ {[%clk 0:00:13.6]}
60... Ke6 {[%clk 0:00:12.7]} 61. Ke3 {[%clk 0:00:14]} 61... h6 {[%clk
0:00:11.8]} 62. Kf4 {[%clk 0:00:13.1]} 62... f5 {[%clk 0:00:10.4]} 63. gxf5+
{[%clk 0:00:12]} 63... Nxf5 {[%clk 0:00:11.3]} 64. b4 {[%clk 0:00:11.3]} 64...
e3 {[%clk 0:00:11.3]} 65. Kf3 {[%clk 0:00:10.8]} 65... Kd5 {[%clk 0:00:11.8]}
66. Bc1 {[%clk 0:00:10.4]} 66... Kc4 {[%clk 0:00:10.7]} 67. Bxe3 {[%clk
0:00:10]} 67... Kxb4 {[%clk 0:00:08.6]} 68. Bxh6 {[%clk 0:00:10.2]} 68... Nxh6
{[%clk 0:00:08.7]} 69. Kf4 {[%clk 0:00:10.5]} 69... Kc5 {[%clk 0:00:08.1]} 70.
Kg5 {[%clk 0:00:11.2]} 70... Nf7+ {[%clk 0:00:08.6]} 71. Kg6 {[%clk 0:00:11.7]}
71... Ne5+ {[%clk 0:00:09.2]} 72. Kf5 {[%clk 0:00:12.2]} 72... Kd5 {[%clk
0:00:09.2]} 73. h6 {[%clk 0:00:12.4]} 73... Nf7 {[%clk 0:00:06.7]} 74. h7 {[%clk
0:00:12.3]} 74... Nh6+ {[%clk 0:00:04.9]} 75. Kg6 {[%clk 0:00:12.3]} 75... Nf7
{[%clk 0:00:02.9]} 76. Kxf7 {[%clk 0:00:12.4]} 1-0

[Event "Early-Titled-Tuesday-Blitz-September-12-2023"]
[Site "Chess.com"]
[Date "2023.09.12"]
[Round "1"]
[White "Predator0608"]
[Black "jens1102"]
[Result "0-1"]
[WhiteElo "2321"]
[BlackElo "2688"]
[TimeControl "180+1"]
[EndTime "8:08:57 PDT"]
[Termination "jens1102 won by resignation"]

1. f4 {[%clk 0:03:00.9]} 1... d5 {[%clk 0:02:58.8]} 2. Nf3 {[%clk 0:03:01.1]}
2... c6 {[%clk 0:02:55.8]} 3. g3 {[%clk 0:03:01.3]} 3... Bg4 {[%clk 0:02:55.4]}
4. Bg2 {[%clk 0:03:01.7]} 4... Nd7 {[%clk 0:02:56]} 5. O-O {[%clk 0:03:01.3]}
5... e6 {[%clk 0:02:55.9]} 6. d3 {[%clk 0:03:00.6]} 6... h5 {[%clk 0:02:55.7]}
7. e4 {[%clk 0:02:59.4]} 7... h4 {[%clk 0:02:54.6]} 8. h3 {[%clk 0:02:46.4]}
8... dxe4 {[%clk 0:02:42.6]} 9. hxg4 {[%clk 0:02:23.7]} 9... exf3 {[%clk
0:02:41.7]} 10. Qxf3 {[%clk 0:02:23.4]} 10... Bc5+ {[%clk 0:02:09.9]} 11. Be3
{[%clk 0:02:22.4]} 11... Qb6 {[%clk 0:02:10.5]} 12. Bxc5 {[%clk 0:01:52.4]}
12... Qxc5+ {[%clk 0:02:04.5]} 13. Qf2 {[%clk 0:01:44.4]} 13... hxg3 {[%clk
0:02:03.8]} 14. Qxc5 {[%clk 0:01:43.6]} 14... Nxc5 {[%clk 0:02:04.7]} 15. Rf3
{[%clk 0:01:44.3]} 15... Nf6 {[%clk 0:01:50.2]} 16. Rxg3 {[%clk 0:01:43.7]}
16... Rh4 {[%clk 0:01:50.9]} 17. Bf3 {[%clk 0:01:37.7]} 17... O-O-O {[%clk
0:01:51]} 18. Nc3 {[%clk 0:01:35.6]} 18... Rdh8 {[%clk 0:01:49.1]} 19. Kf2
{[%clk 0:01:24.4]} 19... Nd5 {[%clk 0:01:34.5]} 20. Nxd5 {[%clk 0:01:19.2]}
20... cxd5 {[%clk 0:01:35.1]} 21. d4 {[%clk 0:01:16.4]} 21... Na4 {[%clk
0:01:34.2]} 22. c4 {[%clk 0:01:02.8]} 22... Rh2+ {[%clk 0:01:29.9]} 23. Rg2
{[%clk 0:01:01]} 23... dxc4 {[%clk 0:01:29.1]} 24. b3 {[%clk 0:00:58.7]} 24...
Rxg2+ {[%clk 0:01:19.8]} 25. Bxg2 {[%clk 0:00:58.7]} 25... Nb6 {[%clk
0:01:03.9]} 26. bxc4 {[%clk 0:00:58.7]} 26... Nxc4 {[%clk 0:01:01.1]} 27. Rc1
{[%clk 0:00:52.9]} 27... b5 {[%clk 0:01:01.1]} 28. a4 {[%clk 0:00:51.1]} 28...
a6 {[%clk 0:01:00.5]} 29. axb5 {[%clk 0:00:48.2]} 29... axb5 {[%clk 0:01:01.4]}
30. Bc6 {[%clk 0:00:48.5]} 30... Rh2+ {[%clk 0:00:49.8]} 31. Kg3 {[%clk
0:00:47.9]} 31... Rb2 {[%clk 0:00:50.2]} 32. Bxb5 {[%clk 0:00:47.7]} 32... Rxb5
{[%clk 0:00:51.1]} 33. Rxc4+ {[%clk 0:00:48.3]} 33... Kd7 {[%clk 0:00:52]} 34.
Kf3 {[%clk 0:00:47.5]} 34... Rb3+ {[%clk 0:00:48.6]} 35. Ke4 {[%clk 0:00:47.3]}
35... f6 {[%clk 0:00:48.2]} 36. Ra4 {[%clk 0:00:45.2]} 36... Rb7 {[%clk
0:00:45.8]} 37. d5 {[%clk 0:00:41.4]} 37... exd5+ {[%clk 0:00:33]} 38. Kxd5
{[%clk 0:00:42.3]} 38... Rb5+ {[%clk 0:00:33.4]} 39. Ke4 {[%clk 0:00:42.1]}
39... Ke6 {[%clk 0:00:33.8]} 40. Ra6+ {[%clk 0:00:42.2]} 40... Kf7 {[%clk
0:00:34]} 41. Ra7+ {[%clk 0:00:42.6]} 41... Kg6 {[%clk 0:00:34.7]} 42. Kf3
{[%clk 0:00:42.6]} 42... Rb3+ {[%clk 0:00:34.5]} 43. Kg2 {[%clk 0:00:42.6]}
43... Rc3 {[%clk 0:00:34.8]} 44. Rb7 {[%clk 0:00:41.8]} 44... Ra3 {[%clk
0:00:35]} 45. Kf2 {[%clk 0:00:42.1]} 45... Rc3 {[%clk 0:00:35]} 46. Ra7 {[%clk
0:00:41.8]} 46... Kh7 {[%clk 0:00:34.9]} 47. Kg2 {[%clk 0:00:41.1]} 47... Kh6
{[%clk 0:00:35.1]} 48. Kf2 {[%clk 0:00:40]} 48... g5 {[%clk 0:00:35.2]} 49. f5
{[%clk 0:00:36.5]} 49... Rc4 {[%clk 0:00:34.6]} 50. Kg3 {[%clk 0:00:36.3]} 50...
Rc3+ {[%clk 0:00:35.2]} 51. Kf2 {[%clk 0:00:36.3]} 51... Rc2+ {[%clk 0:00:34.2]}
52. Kg3 {[%clk 0:00:36.5]} 52... Rc6 {[%clk 0:00:33.3]} 53. Rf7 {[%clk
0:00:35.6]} 53... Rb6 {[%clk 0:00:33.6]} 54. Kf2 {[%clk 0:00:35.4]} 54... Ra6
{[%clk 0:00:33.3]} 55. Ke3 {[%clk 0:00:35.4]} 55... Rb6 {[%clk 0:00:32.8]} 56.
Kd3 {[%clk 0:00:33.5]} 56... Ra6 {[%clk 0:00:32.9]} 57. Kc3 {[%clk 0:00:33.6]}
57... Rb6 {[%clk 0:00:32.4]} 58. Kc4 {[%clk 0:00:33.6]} 58... Ra6 {[%clk
0:00:31.4]} 59. Kb5 {[%clk 0:00:33.7]} 59... Rd6 {[%clk 0:00:31.5]} 60. Kc5
{[%clk 0:00:34.1]} 60... Ra6 {[%clk 0:00:32]} 61. Kd5 {[%clk 0:00:33.8]} 61...
Rb6 {[%clk 0:00:31.4]} 62. Re7 {[%clk 0:00:32.2]} 62... Rb4 {[%clk 0:00:31.4]}
63. Ke6 {[%clk 0:00:32]} 63... Rxg4 {[%clk 0:00:26.2]} 64. Kxf6 {[%clk
0:00:32.4]} 64... Rg1 {[%clk 0:00:24.7]} 65. Re8 {[%clk 0:00:32.6]} 65... Kh7
{[%clk 0:00:24.7]} 66. Re7+ {[%clk 0:00:31.7]} 66... Kh6 {[%clk 0:00:23.1]} 67.
Re8 {[%clk 0:00:28.6]} 67... Kh7 {[%clk 0:00:23.4]} 68. Kf7 {[%clk 0:00:29.1]}
68... g4 {[%clk 0:00:23.1]} 69. f6 {[%clk 0:00:29]} 69... g3 {[%clk 0:00:23.3]}
70. Re3 {[%clk 0:00:29]} 70... Kh6 {[%clk 0:00:22.3]} 71. Ke8 {[%clk 0:00:29.1]}
71... g2 {[%clk 0:00:16]} 72. Rg3 {[%clk 0:00:26.2]} 72... Re1+ {[%clk
0:00:15.4]} 73. Kf8 {[%clk 0:00:16.5]} 73... g1=Q {[%clk 0:00:16.3]} 74. Rxg1
{[%clk 0:00:16.2]} 74... Rxg1 {[%clk 0:00:17.2]} 75. f7 {[%clk 0:00:17.1]} 75...
Kg6 {[%clk 0:00:17.3]} 76. Kg8 {[%clk 0:00:15]} 76... Kf6+ {[%clk 0:00:17.2]}
77. Kf8 {[%clk 0:00:14.7]} 77... Rg7 {[%clk 0:00:16.8]} 78. Ke8 {[%clk
0:00:15.1]} 78... Rxf7 {[%clk 0:00:17.4]} 0-1

[Event "Early-Titled-Tuesday-Blitz-September-12-2023"]
[Site "Chess.com"]
[Date "2023.09.12"]
[Round "1"]
[White "ljm509"]
[Black "MKlose11"]
[Result "1-0"]
[WhiteElo "2354"]
[BlackElo "2622"]
[TimeControl "180+1"]
[EndTime "8:09:00 PDT"]
[Termination "ljm509 won by checkmate"]

1. e4 {[%clk 0:03:00]} 1... e6 {[%clk 0:02:59.7]} 2. d4 {[%clk 0:02:59]} 2... d5
{[%clk 0:02:59.9]} 3. Nc3 {[%clk 0:02:56.8]} 3... Bb4 {[%clk 0:02:59.6]} 4. exd5
{[%clk 0:02:56.5]} 4... exd5 {[%clk 0:02:48.1]} 5. Nf3 {[%clk 0:02:56.2]} 5...
Nc6 {[%clk 0:02:46.5]} 6. Bb5 {[%clk 0:02:53.6]} 6... Ne7 {[%clk 0:02:41.1]} 7.
O-O {[%clk 0:02:53]} 7... O-O {[%clk 0:02:41.2]} 8. h3 {[%clk 0:02:53]} 8... Bf5
{[%clk 0:02:40.7]} 9. Ne2 {[%clk 0:02:52.3]} 9... Bd6 {[%clk 0:02:38.5]} 10. c3
{[%clk 0:02:50]} 10... h6 {[%clk 0:02:36.1]} 11. Bd3 {[%clk 0:02:49.4]} 11...
Qd7 {[%clk 0:02:32.9]} 12. Bf4 {[%clk 0:02:48.3]} 12... Rae8 {[%clk 0:02:28.7]}
13. Qd2 {[%clk 0:02:45.9]} 13... Na5 {[%clk 0:02:14.4]} 14. b3 {[%clk
0:02:41.8]} 14... Nac6 {[%clk 0:02:04]} 15. Rfe1 {[%clk 0:02:38.6]} 15... Nd8
{[%clk 0:02:03.6]} 16. Ne5 {[%clk 0:02:35.9]} 16... Bxe5 {[%clk 0:02:01.1]} 17.
Bxe5 {[%clk 0:02:35.6]} 17... f6 {[%clk 0:01:59.1]} 18. Bf4 {[%clk 0:02:32.8]}
18... Ne6 {[%clk 0:01:54.5]} 19. Ng3 {[%clk 0:02:30.9]} 19... Nxf4 {[%clk
0:01:48.5]} 20. Bxf5 {[%clk 0:02:23.8]} 20... Nxf5 {[%clk 0:01:35]} 21. Qxf4
{[%clk 0:02:22.5]} 21... Nd6 {[%clk 0:01:34.9]} 22. Qf3 {[%clk 0:01:59.9]} 22...
c6 {[%clk 0:01:33.3]} 23. Kf1 {[%clk 0:01:52.8]} 23... a5 {[%clk 0:01:21.3]} 24.
Rxe8 {[%clk 0:01:52]} 24... Rxe8 {[%clk 0:01:20.7]} 25. Re1 {[%clk 0:01:52.9]}
25... Rxe1+ {[%clk 0:01:20]} 26. Kxe1 {[%clk 0:01:52.9]} 26... a4 {[%clk
0:01:20.6]} 27. Nh5 {[%clk 0:01:47.4]} 27... Qe6+ {[%clk 0:01:11.1]} 28. Kd1
{[%clk 0:01:44.6]} 28... axb3 {[%clk 0:01:09]} 29. axb3 {[%clk 0:01:44.1]} 29...
Ne4 {[%clk 0:01:08.9]} 30. Kc2 {[%clk 0:01:38.4]} 30... Qe7 {[%clk 0:01:06.4]}
31. Qf5 {[%clk 0:01:18.4]} 31... Qa3 {[%clk 0:00:57.9]} 32. Qc8+ {[%clk
0:01:17.3]} 32... Kh7 {[%clk 0:00:57.7]} 33. Qf5+ {[%clk 0:01:16.8]} 33... Kg8
{[%clk 0:00:57.1]} 34. Qc8+ {[%clk 0:01:16.4]} 34... Kf7 {[%clk 0:00:56.8]} 35.
Qd7+ {[%clk 0:01:16]} 35... Kf8 {[%clk 0:00:16.4]} 36. Qd8+ {[%clk 0:00:20.8]}
36... Kf7 {[%clk 0:00:16.3]} 37. Qd7+ {[%clk 0:00:20.7]} 37... Qe7 {[%clk
0:00:16.8]} 38. Qxe7+ {[%clk 0:00:18.6]} 38... Kxe7 {[%clk 0:00:17.7]} 39. f3
{[%clk 0:00:18.8]} 39... Ng3 {[%clk 0:00:13.4]} 40. Nxg3 {[%clk 0:00:18.5]}
40... Ke6 {[%clk 0:00:13.3]} 41. Kd3 {[%clk 0:00:18.6]} 41... g6 {[%clk
0:00:13.8]} 42. f4 {[%clk 0:00:18.4]} 42... Kd6 {[%clk 0:00:10.3]} 43. f5 {[%clk
0:00:18.1]} 43... g5 {[%clk 0:00:10.5]} 44. Nh5 {[%clk 0:00:17.8]} 44... Ke7
{[%clk 0:00:10.5]} 45. g4 {[%clk 0:00:17.9]} 45... b6 {[%clk 0:00:10.1]} 46. Kc2
{[%clk 0:00:18]} 46... Kf7 {[%clk 0:00:10.4]} 47. Kb2 {[%clk 0:00:18]} 47... Ke7
{[%clk 0:00:10.4]} 48. Ka3 {[%clk 0:00:18.6]} 48... Kf7 {[%clk 0:00:11.1]} 49.
Kb4 {[%clk 0:00:18.7]} 49... Ke7 {[%clk 0:00:12]} 50. c4 {[%clk 0:00:18.4]}
50... dxc4 {[%clk 0:00:11.3]} 51. bxc4 {[%clk 0:00:18.6]} 51... Kf7 {[%clk
0:00:11.6]} 52. d5 {[%clk 0:00:17.8]} 52... cxd5 {[%clk 0:00:12.5]} 53. cxd5
{[%clk 0:00:17.8]} 53... Ke7 {[%clk 0:00:13.4]} 54. Kb5 {[%clk 0:00:18.6]} 54...
Kd6 {[%clk 0:00:13.7]} 55. Nxf6 {[%clk 0:00:18.6]} 55... Ke5 {[%clk 0:00:13.9]}
56. Nd7+ {[%clk 0:00:17.4]} 56... Kxd5 {[%clk 0:00:14.2]} 57. Nxb6+ {[%clk
0:00:17.5]} 57... Ke5 {[%clk 0:00:15.1]} 58. Nc4+ {[%clk 0:00:17.7]} 58... Kf6
{[%clk 0:00:13.5]} 59. Kc5 {[%clk 0:00:17.8]} 59... h5 {[%clk 0:00:14.4]} 60.
Kd5 {[%clk 0:00:18.4]} 60... hxg4 {[%clk 0:00:15.3]} 61. hxg4 {[%clk 0:00:18.7]}
61... Kg7 {[%clk 0:00:16.2]} 62. Ke5 {[%clk 0:00:18.3]} 62... Kf7 {[%clk
0:00:17.1]} 63. Ne3 {[%clk 0:00:18.3]} 63... Kg7 {[%clk 0:00:18]} 64. Nd1 {[%clk
0:00:18.5]} 64... Kh6 {[%clk 0:00:18.9]} 65. Nf2 {[%clk 0:00:19.3]} 65... Kg7
{[%clk 0:00:19.5]} 66. Ne4 {[%clk 0:00:20.2]} 66... Kf7 {[%clk 0:00:19.9]} 67.
Nxg5+ {[%clk 0:00:20.1]} 67... Kg7 {[%clk 0:00:20.8]} 68. Ne4 {[%clk 0:00:20.9]}
68... Kh6 {[%clk 0:00:21.6]} 69. g5+ {[%clk 0:00:21.8]} 69... Kh7 {[%clk
0:00:22.3]} 70. g6+ {[%clk 0:00:22]} 70... Kh8 {[%clk 0:00:23.2]} 71. Ke6 {[%clk
0:00:19.2]} 71... Kg8 {[%clk 0:00:04.3]} 72. f6 {[%clk 0:00:18.9]} 72... Kh8
{[%clk 0:00:02.2]} 73. Ke7 {[%clk 0:00:14.7]} 73... Kg8 {[%clk 0:00:03.1]} 74.
f7+ {[%clk 0:00:14.7]} 74... Kh8 {[%clk 0:00:04]} 75. f8=Q# {[%clk 0:00:14.5]}
1-0

[Event "Early-Titled-Tuesday-Blitz-September-12-2023"]
[Site "Chess.com"]
[Date "2023.09.12"]
[Round "1"]
[White "Aash20"]
[Black "amintabatabaei"]
[Result "0-1"]
[WhiteElo "2527"]
[BlackElo "3046"]
[TimeControl "180+1"]
[EndTime "8:09:28 PDT"]
[Termination "amintabatabaei won by checkmate"]

1. e4 {[%clk 0:02:58.2]} 1... c6 {[%clk 0:02:59]} 2. d4 {[%clk 0:02:57.9]} 2...
d5 {[%clk 0:02:59.9]} 3. Nc3 {[%clk 0:02:57.7]} 3... dxe4 {[%clk 0:03:00.3]} 4.
Nxe4 {[%clk 0:02:58.6]} 4... Nf6 {[%clk 0:03:01.1]} 5. Nxf6+ {[%clk 0:02:58.5]}
5... exf6 {[%clk 0:03:02]} 6. c3 {[%clk 0:02:59]} 6... Bd6 {[%clk 0:03:02]} 7.
Bd3 {[%clk 0:02:59]} 7... O-O {[%clk 0:03:02.5]} 8. Ne2 {[%clk 0:02:59.3]} 8...
Re8 {[%clk 0:03:02.5]} 9. O-O {[%clk 0:02:59.4]} 9... Qc7 {[%clk 0:03:02.2]} 10.
Ng3 {[%clk 0:02:59.3]} 10... Nd7 {[%clk 0:03:01.6]} 11. c4 {[%clk 0:02:55.2]}
11... Nf8 {[%clk 0:03:01.1]} 12. b3 {[%clk 0:02:54.7]} 12... Ng6 {[%clk
0:03:00.7]} 13. Re1 {[%clk 0:02:53.4]} 13... Be6 {[%clk 0:02:55.9]} 14. Bb2
{[%clk 0:02:46.5]} 14... Rad8 {[%clk 0:02:55.9]} 15. Qc2 {[%clk 0:02:45.2]}
15... Kh8 {[%clk 0:02:46.4]} 16. Bf5 {[%clk 0:02:33.1]} 16... Nf4 {[%clk
0:02:27.8]} 17. Bxe6 {[%clk 0:02:30.5]} 17... fxe6 {[%clk 0:02:16.8]} 18. Rad1
{[%clk 0:02:14.7]} 18... Qf7 {[%clk 0:02:15.6]} 19. Bc1 {[%clk 0:01:53.3]} 19...
Ng6 {[%clk 0:02:05.8]} 20. Re2 {[%clk 0:01:46.3]} 20... Bc7 {[%clk 0:02:05.7]}
21. Bb2 {[%clk 0:01:43.8]} 21... Nf4 {[%clk 0:02:05.3]} 22. Ree1 {[%clk
0:01:40.8]} 22... h5 {[%clk 0:02:04.7]} 23. Bc1 {[%clk 0:01:36.7]} 23... h4
{[%clk 0:02:03.9]} 24. Bxf4 {[%clk 0:01:35.7]} 24... Bxf4 {[%clk 0:02:04.8]} 25.
Nf1 {[%clk 0:01:36]} 25... Qh5 {[%clk 0:01:48.4]} 26. Rd3 {[%clk 0:01:35.1]}
26... Qf5 {[%clk 0:01:38.7]} 27. Qe2 {[%clk 0:01:33.2]} 27... e5 {[%clk
0:01:31.6]} 28. Rh3 {[%clk 0:01:26.9]} 28... g5 {[%clk 0:01:19.7]} 29. Qh5+
{[%clk 0:01:24]} 29... Kg7 {[%clk 0:01:20.1]} 30. dxe5 {[%clk 0:01:23.3]} 30...
Bxe5 {[%clk 0:01:16.5]} 31. Rhe3 {[%clk 0:01:21]} 31... Re7 {[%clk 0:01:07.7]}
32. Qe2 {[%clk 0:00:55.8]} 32... Red7 {[%clk 0:01:06.1]} 33. Rf3 {[%clk
0:00:49]} 33... Qg6 {[%clk 0:01:01.1]} 34. h3 {[%clk 0:00:43.9]} 34... Rd3
{[%clk 0:00:57.9]} 35. Re3 {[%clk 0:00:29.8]} 35... Qf5 {[%clk 0:00:53.8]} 36.
Rxd3 {[%clk 0:00:28.2]} 36... Qxd3 {[%clk 0:00:54.5]} 37. Qg4 {[%clk 0:00:22.7]}
37... Qd4 {[%clk 0:00:37.8]} 38. Qh5 {[%clk 0:00:20]} 38... Rh8 {[%clk
0:00:33.9]} 39. Qf3 {[%clk 0:00:19.5]} 39... Rd8 {[%clk 0:00:21.4]} 40. Ne3
{[%clk 0:00:19.5]} 40... Qf4 {[%clk 0:00:22.1]} 41. Nf5+ {[%clk 0:00:17.7]}
41... Kg6 {[%clk 0:00:20.8]} 42. Qxf4 {[%clk 0:00:15.3]} 42... Bxf4 {[%clk
0:00:20.7]} 43. Ne3 {[%clk 0:00:15]} 43... Rd2 {[%clk 0:00:20.4]} 44. Ng4 {[%clk
0:00:14.7]} 44... Rxa2 {[%clk 0:00:17.7]} 45. Kf1 {[%clk 0:00:14]} 45... Kf7
{[%clk 0:00:15.9]} 46. Rd1 {[%clk 0:00:12.5]} 46... Ke6 {[%clk 0:00:15.3]} 47.
Re1+ {[%clk 0:00:12.6]} 47... Be5 {[%clk 0:00:15.6]} 48. Rd1 {[%clk 0:00:09.6]}
48... Rb2 {[%clk 0:00:14.7]} 49. Rd8 {[%clk 0:00:08.7]} 49... Rxb3 {[%clk
0:00:14.2]} 50. Re8+ {[%clk 0:00:08.9]} 50... Kf7 {[%clk 0:00:12.8]} 51. Ra8
{[%clk 0:00:09.1]} 51... Ra3 {[%clk 0:00:12.1]} 52. Rd8 {[%clk 0:00:07]} 52...
Ke7 {[%clk 0:00:10.8]} 53. Rh8 {[%clk 0:00:07.2]} 53... Rb3 {[%clk 0:00:08.5]}
54. Rh7+ {[%clk 0:00:07.5]} 54... Ke6 {[%clk 0:00:08.5]} 55. Ne3 {[%clk
0:00:07.8]} 55... a5 {[%clk 0:00:08.7]} 56. Rh8 {[%clk 0:00:05.5]} 56... a4
{[%clk 0:00:09.1]} 57. Ra8 {[%clk 0:00:05.9]} 57... a3 {[%clk 0:00:09.7]} 58.
Ke2 {[%clk 0:00:06.3]} 58... b5 {[%clk 0:00:08.5]} 59. cxb5 {[%clk 0:00:06.2]}
59... cxb5 {[%clk 0:00:08.7]} 60. Kf3 {[%clk 0:00:07.1]} 60... b4 {[%clk
0:00:08.5]} 61. Ke4 {[%clk 0:00:07.2]} 61... Rb1 {[%clk 0:00:06.4]} 62. Ra7
{[%clk 0:00:06.7]} 62... Kd6 {[%clk 0:00:05.3]} 63. Nc4+ {[%clk 0:00:06.4]}
63... Kc5 {[%clk 0:00:05.9]} 64. Ne3 {[%clk 0:00:06.3]} 64... Kb6 {[%clk
0:00:05]} 65. Ra8 {[%clk 0:00:06.4]} 65... Re1 {[%clk 0:00:05.1]} 66. Kd5 {[%clk
0:00:05.7]} 66... Kb7 {[%clk 0:00:04.2]} 67. Ra4 {[%clk 0:00:05.5]} 67... b3
{[%clk 0:00:03.8]} 68. Rxa3 {[%clk 0:00:05.1]} 68... b2 {[%clk 0:00:04.5]} 69.
Rb3+ {[%clk 0:00:05.5]} 69... Kc7 {[%clk 0:00:05.2]} 70. Nc4 {[%clk 0:00:05.2]}
70... b1=Q {[%clk 0:00:05.1]} 71. Rxb1 {[%clk 0:00:05.6]} 71... Rxb1 {[%clk
0:00:06]} 72. Nxe5 {[%clk 0:00:05.6]} 72... fxe5 {[%clk 0:00:06.9]} 73. Kxe5
{[%clk 0:00:06.5]} 73... Rb2 {[%clk 0:00:06.8]} 74. Kf5 {[%clk 0:00:07.4]} 74...
Rxf2+ {[%clk 0:00:06.8]} 75. Kxg5 {[%clk 0:00:08.3]} 75... Rxg2+ {[%clk
0:00:07.5]} 76. Kxh4 {[%clk 0:00:09.2]} 76... Kd6 {[%clk 0:00:08.4]} 77. Kh5
{[%clk 0:00:10.1]} 77... Ke5 {[%clk 0:00:08.5]} 78. h4 {[%clk 0:00:10.5]} 78...
Kf6 {[%clk 0:00:09.1]} 79. Kh6 {[%clk 0:00:11.4]} 79... Kf7 {[%clk 0:00:09.5]}
80. h5 {[%clk 0:00:12.3]} 80... Ra2 {[%clk 0:00:07.2]} 81. Kh7 {[%clk
0:00:12.5]} 81... Ra7 {[%clk 0:00:06]} 82. h6 {[%clk 0:00:12.4]} 82... Kf6+
{[%clk 0:00:06.3]} 83. Kg8 {[%clk 0:00:12.6]} 83... Kg6 {[%clk 0:00:06.8]} 84.
h7 {[%clk 0:00:13]} 84... Ra8# {[%clk 0:00:06.5]} 0-1